[Event "*** Titled Tuesday Blitz"]
[Site "Chess.com"]
[Date "2019.12.03"]
[Round "8"]
[White "goldenspine"]
[Black "Kumi29"]
[Result "0-1"]
[WhiteElo "2331"]
[BlackElo "2509"]
[TimeControl "180+2"]
[EndTime "14:51:30 PST"]
[Termination "Kumi29 won by resignation"]

1. e4 {[%clk 0:00:57.4]} 1... e5 {[%clk 0:03:00.6]} 2. Nf3 {[%clk 0:00:58]} 2...
Nc6 {[%clk 0:03:02.1]} 3. Bb5 {[%clk 0:00:59.7]} 3... a6 {[%clk 0:03:03]} 4. Ba4
{[%clk 0:01:00.9]} 4... f5 {[%clk 0:03:04.5]} 5. Bxc6 {[%clk 0:00:59.3]} 5...
dxc6 {[%clk 0:03:05.4]} 6. Nxe5 {[%clk 0:00:57.9]} 6... Qd4 {[%clk 0:03:06.3]}
7. Nf3 {[%clk 0:00:58.1]} 7... Qxe4+ {[%clk 0:03:07.7]} 8. Qe2 {[%clk
0:00:59.7]} 8... Qxe2+ {[%clk 0:03:02.9]} 9. Kxe2 {[%clk 0:01:01.6]} 9... Bd7
{[%clk 0:03:00.9]} 10. Ne5 {[%clk 0:00:57.3]} 10... Be6 {[%clk 0:02:52.6]} 11.
d4 {[%clk 0:00:55.8]} 11... O-O-O {[%clk 0:02:52.2]} 12. Be3 {[%clk 0:00:49.4]}
12... Nf6 {[%clk 0:02:52.9]} 13. Nd2 {[%clk 0:00:44.1]} 13... Nd7 {[%clk
0:02:48.3]} 14. Nxd7 {[%clk 0:00:42.3]} 14... Rxd7 {[%clk 0:02:47.5]} 15. Nf3
{[%clk 0:00:42.7]} 15... Bc4+ {[%clk 0:02:40.1]} 16. Ke1 {[%clk 0:00:43.4]}
16... Bd6 {[%clk 0:02:37.5]} 17. b3 {[%clk 0:00:43.1]} 17... Bb4+ {[%clk
0:02:38.4]} 18. Kd1 {[%clk 0:00:36.5]} 18... Bc3 {[%clk 0:02:35.8]} 19. Rb1
{[%clk 0:00:35]} 19... Bd5 {[%clk 0:02:35.9]} 20. Ne5 {[%clk 0:00:34.6]} 20...
Rdd8 {[%clk 0:02:25.5]} 21. Ke2 {[%clk 0:00:31]} 21... Rhe8 {[%clk 0:02:20.6]}
22. Rhd1 {[%clk 0:00:27.1]} 22... Bxg2 {[%clk 0:02:18.4]} 23. f3 {[%clk
0:00:27.4]} 23... Bh3 {[%clk 0:02:02.2]} 24. Rd3 {[%clk 0:00:27.9]} 24... Bb4
{[%clk 0:01:53.4]} 25. c3 {[%clk 0:00:26.5]} 25... Bd6 {[%clk 0:01:54.1]} 26.
Nf7 {[%clk 0:00:19]} 26... f4 {[%clk 0:01:52.5]} 27. Nxd8 {[%clk 0:00:17.4]}
27... Kxd8 {[%clk 0:01:53.7]} 28. Rg1 {[%clk 0:00:17.2]} 28... Bf5 {[%clk
0:01:51.8]} 29. Rd2 {[%clk 0:00:15.6]} 29... Rxe3+ {[%clk 0:01:50.9]} 30. Kf2
{[%clk 0:00:16.9]} 30... g6 {[%clk 0:01:47.9]} 31. c4 {[%clk 0:00:11.4]} 31...
Be7 {[%clk 0:01:45.9]} 32. Re1 {[%clk 0:00:11.7]} 32... Bh4+ {[%clk 0:01:46.7]}
0-1

[Event "*** Titled Tuesday Blitz"]
[Site "Chess.com"]
[Date "2019.12.03"]
[Round "8"]
[White "Indianlad"]
[Black "wild_cat99"]
[Result "1-0"]
[WhiteElo "2875"]
[BlackElo "2424"]
[TimeControl "180+2"]
[EndTime "14:51:31 PST"]
[Termination "Indianlad won by resignation"]

1. d4 {[%clk 0:03:01.9]} 1... Nf6 {[%clk 0:03:00.8]} 2. c4 {[%clk 0:03:03]} 2...
g6 {[%clk 0:03:01.9]} 3. Nc3 {[%clk 0:03:04]} 3... d5 {[%clk 0:03:03.2]} 4. Nf3
{[%clk 0:03:02.8]} 4... Bg7 {[%clk 0:03:02.8]} 5. cxd5 {[%clk 0:03:04.5]} 5...
Nxd5 {[%clk 0:03:03.7]} 6. e4 {[%clk 0:03:06.1]} 6... Nxc3 {[%clk 0:03:04.9]} 7.
bxc3 {[%clk 0:03:07.6]} 7... c5 {[%clk 0:03:06.8]} 8. Be3 {[%clk 0:03:08.4]}
8... Nc6 {[%clk 0:03:06.2]} 9. Rc1 {[%clk 0:03:08]} 9... cxd4 {[%clk 0:03:06.8]}
10. cxd4 {[%clk 0:03:09.7]} 10... Qa5+ {[%clk 0:03:08.1]} 11. Bd2 {[%clk
0:03:10]} 11... Qxa2 {[%clk 0:03:06.3]} 12. d5 {[%clk 0:03:11.6]} 12... Ne5
{[%clk 0:02:43.6]} 13. Nxe5 {[%clk 0:03:10.6]} 13... Bxe5 {[%clk 0:02:45.5]} 14.
Bb5+ {[%clk 0:03:12.2]} 14... Kf8 {[%clk 0:02:41.5]} 15. O-O {[%clk 0:03:12.4]}
15... Kg7 {[%clk 0:02:10.3]} 16. Bb4 {[%clk 0:02:56.1]} 16... h5 {[%clk
0:01:11.4]} 17. Bxe7 {[%clk 0:02:55.2]} 17... Bg4 {[%clk 0:01:12.6]} 18. f3
{[%clk 0:02:54]} 18... Qa5 {[%clk 0:01:05.1]} 19. fxg4 {[%clk 0:02:44.8]} 19...
Qxb5 {[%clk 0:01:05.5]} 20. Qf3 {[%clk 0:02:46]} 20... Qe8 {[%clk 0:01:02.1]}
21. Bf6+ {[%clk 0:02:44.4]} 21... Bxf6 {[%clk 0:00:59.2]} 22. Qxf6+ {[%clk
0:02:46.3]} 22... Kg8 {[%clk 0:01:01.1]} 23. Rc7 {[%clk 0:02:47.5]} 23... Rh7
{[%clk 0:00:58.1]} 24. gxh5 {[%clk 0:02:48.9]} 24... Qxe4 {[%clk 0:00:54]} 25.
Rxf7 {[%clk 0:02:46.7]} 25... Qe3+ {[%clk 0:00:10.9]} 26. Kh1 {[%clk 0:02:46.9]}
26... Qh6 {[%clk 0:00:12.8]} 27. Rxh7 {[%clk 0:02:43.8]} 27... Kxh7 {[%clk
0:00:13]} 28. Qe7+ {[%clk 0:02:40.8]} 28... Kh8 {[%clk 0:00:12.7]} 29. d6 {[%clk
0:02:30.1]} 29... gxh5 {[%clk 0:00:07.3]} 30. d7 {[%clk 0:02:31.6]} 30... Qa6
{[%clk 0:00:03.5]} 31. d8=Q+ {[%clk 0:02:28.8]} 31... Rxd8 {[%clk 0:00:04.7]}
32. Qxd8+ {[%clk 0:02:30.7]} 32... Kg7 {[%clk 0:00:06]} 33. Qf8+ {[%clk
0:02:31.1]} 33... Kg6 {[%clk 0:00:07]} 34. Qf5+ {[%clk 0:02:30]} 34... Kg7
{[%clk 0:00:07.9]} 35. Rd1 {[%clk 0:02:31.7]} 35... Qe2 {[%clk 0:00:08.3]} 36.
Rd7+ {[%clk 0:02:32.6]} 36... Kg8 {[%clk 0:00:09.8]} 37. Qf7+ {[%clk 0:02:33.2]}
37... Kh8 {[%clk 0:00:11.7]} 38. Rd8+ {[%clk 0:02:30.1]} 38... Qe8 {[%clk
0:00:10.8]} 39. Qxe8+ {[%clk 0:02:29.8]} 1-0

[Event "*** Titled Tuesday Blitz"]
[Site "Chess.com"]
[Date "2019.12.03"]
[Round "8"]
[White "DenishevM"]
[Black "boasovietica"]
[Result "0-1"]
[WhiteElo "2598"]
[BlackElo "2417"]
[TimeControl "180+2"]
[EndTime "14:51:42 PST"]
[Termination "boasovietica won by resignation"]

1. c4 {[%clk 0:03:01.8]} 1... c5 {[%clk 0:03:00.2]} 2. Nf3 {[%clk 0:02:57.3]}
2... Nc6 {[%clk 0:03:00.7]} 3. g3 {[%clk 0:02:52]} 3... e5 {[%clk 0:03:00.9]} 4.
Nc3 {[%clk 0:02:51]} 4... g6 {[%clk 0:03:01.5]} 5. Bg2 {[%clk 0:02:52.5]} 5...
Bg7 {[%clk 0:03:02.6]} 6. O-O {[%clk 0:02:53.9]} 6... d6 {[%clk 0:03:03.9]} 7.
d3 {[%clk 0:02:55.5]} 7... Nge7 {[%clk 0:03:04.4]} 8. Rb1 {[%clk 0:02:55.2]}
8... O-O {[%clk 0:03:04.1]} 9. a3 {[%clk 0:02:56.4]} 9... a5 {[%clk 0:03:05.1]}
10. Nd2 {[%clk 0:02:56.2]} 10... Rb8 {[%clk 0:02:55.8]} 11. Nd5 {[%clk
0:02:50.1]} 11... b5 {[%clk 0:02:39]} 12. cxb5 {[%clk 0:02:42.9]} 12... Rxb5
{[%clk 0:02:38.5]} 13. Nc4 {[%clk 0:02:41.1]} 13... Nxd5 {[%clk 0:02:25.4]} 14.
Bxd5 {[%clk 0:02:43]} 14... Ne7 {[%clk 0:02:23.9]} 15. Bg2 {[%clk 0:02:41.5]}
15... d5 {[%clk 0:02:13.9]} 16. Ne3 {[%clk 0:02:35.8]} 16... Be6 {[%clk
0:02:12.9]} 17. Bd2 {[%clk 0:02:32.8]} 17... Qb6 {[%clk 0:02:09.5]} 18. Qc2
{[%clk 0:02:20.9]} 18... Rb8 {[%clk 0:02:04.4]} 19. Rfd1 {[%clk 0:02:15.6]}
19... Nc6 {[%clk 0:01:18.8]} 20. Nxd5 {[%clk 0:02:02.2]} 20... Bxd5 {[%clk
0:01:06.2]} 21. Bxd5 {[%clk 0:02:04.1]} 21... Nd4 {[%clk 0:01:07.1]} 22. Qc4
{[%clk 0:01:58.8]} 22... Rxb2 {[%clk 0:01:04.6]} 23. Rxb2 {[%clk 0:01:56.8]}
23... Qxb2 {[%clk 0:01:05.2]} 24. Bxf7+ {[%clk 0:01:54.8]} 24... Kh8 {[%clk
0:01:05.6]} 25. Bxa5 {[%clk 0:01:41.4]} 25... Qxe2 {[%clk 0:01:01.7]} 26. Rf1
{[%clk 0:01:42.3]} 26... Qf3 {[%clk 0:00:57.2]} 27. Re1 {[%clk 0:01:43.3]} 27...
Rb2 {[%clk 0:00:41.4]} 0-1

[Event "*** Titled Tuesday Blitz"]
[Site "Chess.com"]
[Date "2019.12.03"]
[Round "8"]
[White "RitvarsReimanis"]
[Black "JoakimVonAnd"]
[Result "1-0"]
[WhiteElo "2555"]
[BlackElo "2382"]
[TimeControl "180+2"]
[EndTime "14:51:50 PST"]
[Termination "RitvarsReimanis won by resignation"]

1. d4 {[%clk 0:03:01.9]} 1... Nf6 {[%clk 0:02:56.6]} 2. c4 {[%clk 0:03:01.9]}
2... e6 {[%clk 0:02:57.8]} 3. Nf3 {[%clk 0:03:01.7]} 3... d5 {[%clk 0:02:58.8]}
4. Nc3 {[%clk 0:02:59.1]} 4... c6 {[%clk 0:02:57.9]} 5. cxd5 {[%clk 0:02:54.6]}
5... exd5 {[%clk 0:02:58.9]} 6. Qc2 {[%clk 0:02:55]} 6... g6 {[%clk 0:02:55.3]}
7. Bg5 {[%clk 0:02:54.8]} 7... Be7 {[%clk 0:02:54]} 8. e3 {[%clk 0:02:49.7]}
8... Bf5 {[%clk 0:02:54.8]} 9. Qb3 {[%clk 0:02:50.3]} 9... Qb6 {[%clk
0:02:54.9]} 10. Be2 {[%clk 0:02:33.5]} 10... Nbd7 {[%clk 0:02:52.6]} 11. Qxb6
{[%clk 0:02:11.2]} 11... axb6 {[%clk 0:02:51.8]} 12. Nh4 {[%clk 0:02:12.3]}
12... Be6 {[%clk 0:02:51.8]} 13. Nf3 {[%clk 0:01:59.5]} 13... b5 {[%clk
0:02:52]} 14. O-O {[%clk 0:01:57.5]} 14... h6 {[%clk 0:02:52.9]} 15. Bf4 {[%clk
0:01:58]} 15... Nb6 {[%clk 0:02:53.6]} 16. Ne5 {[%clk 0:01:54.5]} 16... O-O
{[%clk 0:02:49.5]} 17. Bxh6 {[%clk 0:01:54.1]} 17... Rfe8 {[%clk 0:02:48.9]} 18.
a3 {[%clk 0:01:46]} 18... Ra7 {[%clk 0:02:47.6]} 19. Rac1 {[%clk 0:01:43.7]}
19... Nc4 {[%clk 0:02:43.7]} 20. Nxc4 {[%clk 0:01:44.1]} 20... bxc4 {[%clk
0:02:45.6]} 21. Bg5 {[%clk 0:01:26]} 21... b5 {[%clk 0:02:40.6]} 22. Rfe1 {[%clk
0:01:26.8]} 22... Kg7 {[%clk 0:02:39]} 23. Na2 {[%clk 0:01:23.3]} 23... Ne4
{[%clk 0:02:36.4]} 24. Bxe7 {[%clk 0:01:23.4]} 24... Rexe7 {[%clk 0:02:38.3]}
25. Nb4 {[%clk 0:01:16.6]} 25... Nd6 {[%clk 0:02:22.8]} 26. Nxc6 {[%clk
0:01:15]} 26... Rec7 {[%clk 0:02:20.5]} 27. Nxa7 {[%clk 0:01:15]} 27... Rxa7
{[%clk 0:02:22.4]} 28. f3 {[%clk 0:01:09.9]} 28... Nf5 {[%clk 0:02:22.8]} 29.
Bf1 {[%clk 0:01:10.4]} 29... Rb7 {[%clk 0:02:23.5]} 30. b4 {[%clk 0:01:06.7]}
30... Ra7 {[%clk 0:02:22]} 31. Rc3 {[%clk 0:01:06.4]} 31... Nd6 {[%clk
0:02:20.9]} 32. e4 {[%clk 0:01:06.1]} 32... dxe4 {[%clk 0:02:21.2]} 33. fxe4
{[%clk 0:01:08]} 33... f5 {[%clk 0:02:22.3]} 34. exf5 {[%clk 0:00:36.3]} 34...
Bxf5 {[%clk 0:02:22.9]} 35. Re5 {[%clk 0:00:37.5]} 35... Kf6 {[%clk 0:02:19.2]}
36. Rce3 {[%clk 0:00:37]} 36... g5 {[%clk 0:02:12.5]} 37. h3 {[%clk 0:00:36.9]}
37... g4 {[%clk 0:02:08.4]} 38. hxg4 {[%clk 0:00:34.6]} 38... Bxg4 {[%clk
0:02:10.3]} 39. Be2 {[%clk 0:00:34.6]} 39... Bf5 {[%clk 0:02:10.6]} 40. Bf3
{[%clk 0:00:35.3]} 40... Rc7 {[%clk 0:02:10.5]} 41. Rc5 {[%clk 0:00:35.2]} 41...
Rg7 {[%clk 0:02:10]} 42. Rc6 {[%clk 0:00:31.2]} 42... Rd7 {[%clk 0:02:09.1]} 43.
Re5 {[%clk 0:00:32.8]} 43... Kg7 {[%clk 0:02:08.4]} 44. Rxd6 {[%clk 0:00:31.6]}
44... Rxd6 {[%clk 0:02:10.3]} 45. Rxf5 {[%clk 0:00:32.5]} 45... Rxd4 {[%clk
0:02:12.2]} 46. Rxb5 {[%clk 0:00:33.5]} 46... Rd3 {[%clk 0:02:13.1]} 47. Rc5
{[%clk 0:00:34.4]} 47... Rxa3 {[%clk 0:02:14.6]} 48. Rxc4 {[%clk 0:00:35.7]}
48... Ra1+ {[%clk 0:02:16.5]} 49. Kh2 {[%clk 0:00:36.5]} 49... Ra2 {[%clk
0:02:18.4]} 50. b5 {[%clk 0:00:36.8]} 50... Ra3 {[%clk 0:02:20.3]} 51. Rb4
{[%clk 0:00:37.4]} 1-0

[Event "*** Titled Tuesday Blitz"]
[Site "Chess.com"]
[Date "2019.12.03"]
[Round "8"]
[White "VladimirBelous"]
[Black "SerGo055"]
[Result "1-0"]
[WhiteElo "2762"]
[BlackElo "2547"]
[TimeControl "180+2"]
[EndTime "14:51:53 PST"]
[Termination "VladimirBelous won by resignation"]

1. c4 {[%clk 0:03:01.9]} 1... Nf6 {[%clk 0:02:59.5]} 2. Nf3 {[%clk 0:03:01.4]}
2... c6 {[%clk 0:03:00.4]} 3. d4 {[%clk 0:03:00.6]} 3... d5 {[%clk 0:03:01.2]}
4. e3 {[%clk 0:03:02.5]} 4... e6 {[%clk 0:02:52.8]} 5. Bd3 {[%clk 0:03:01.4]}
5... Nbd7 {[%clk 0:02:54]} 6. O-O {[%clk 0:03:02.6]} 6... Bd6 {[%clk 0:02:54.7]}
7. Nbd2 {[%clk 0:03:03]} 7... O-O {[%clk 0:02:55.2]} 8. b3 {[%clk 0:03:03.3]}
8... Qe7 {[%clk 0:02:54]} 9. Bb2 {[%clk 0:02:57.5]} 9... e5 {[%clk 0:02:50.5]}
10. dxe5 {[%clk 0:02:50.2]} 10... Nxe5 {[%clk 0:02:50.7]} 11. Nxe5 {[%clk
0:02:50.6]} 11... Bxe5 {[%clk 0:02:52.6]} 12. Bxe5 {[%clk 0:02:52]} 12... Qxe5
{[%clk 0:02:53.6]} 13. Nf3 {[%clk 0:02:53.9]} 13... Qh5 {[%clk 0:02:53]} 14.
cxd5 {[%clk 0:02:55.8]} 14... Nxd5 {[%clk 0:02:51.8]} 15. h3 {[%clk 0:02:53.7]}
15... Be6 {[%clk 0:02:30.6]} 16. Nd4 {[%clk 0:02:53.2]} 16... Qg5 {[%clk
0:01:57.5]} 17. Nxe6 {[%clk 0:02:37.6]} 17... fxe6 {[%clk 0:01:58.2]} 18. Be4
{[%clk 0:02:38.6]} 18... Nxe3 {[%clk 0:01:48.1]} 19. Qc1 {[%clk 0:02:39.5]}
19... Rf4 {[%clk 0:00:50.7]} 20. Qxe3 {[%clk 0:02:36.9]} 20... Raf8 {[%clk
0:00:52.2]} 21. Rad1 {[%clk 0:02:34]} 21... h6 {[%clk 0:00:25.8]} 22. Bb1 {[%clk
0:02:23.9]} 22... e5 {[%clk 0:00:25.1]} 23. g3 {[%clk 0:02:18.9]} 23... a5
{[%clk 0:00:06.1]} 24. Kh1 {[%clk 0:02:10]} 24... Rxf2 {[%clk 0:00:03]} 25. Qxg5
{[%clk 0:02:01.4]} 25... Rxf1+ {[%clk 0:00:04]} 26. Rxf1 {[%clk 0:02:02.7]}
26... Rxf1+ {[%clk 0:00:04.7]} 27. Kg2 {[%clk 0:02:04.2]} 27... Rxb1 {[%clk
0:00:05.2]} 28. Qd8+ {[%clk 0:02:04.2]} 28... Kf7 {[%clk 0:00:04.6]} 29. Qd7+
{[%clk 0:02:05]} 29... Kf6 {[%clk 0:00:06]} 30. Qxb7 {[%clk 0:02:06.6]} 30...
Rb2+ {[%clk 0:00:06.7]} 31. Kf3 {[%clk 0:02:08.3]} 31... Rxa2 {[%clk 0:00:08]}
32. Qxc6+ {[%clk 0:02:09.7]} 32... Kf7 {[%clk 0:00:09.5]} 33. Qd5+ {[%clk
0:02:10]} 33... Kf6 {[%clk 0:00:10.2]} 34. Qd6+ {[%clk 0:02:11.6]} 34... Kf7
{[%clk 0:00:11.1]} 35. Qxe5 {[%clk 0:02:13.2]} 35... Ra3 {[%clk 0:00:11.7]} 36.
Qd5+ {[%clk 0:02:11.6]} 36... Kg6 {[%clk 0:00:11]} 37. Kg4 {[%clk 0:02:13.5]}
37... Kh7 {[%clk 0:00:10.7]} 38. h4 {[%clk 0:02:14]} 38... a4 {[%clk 0:00:10.9]}
39. Qe4+ {[%clk 0:02:14.1]} 39... Kh8 {[%clk 0:00:08.5]} 40. Qe8+ {[%clk
0:02:16]} 40... Kh7 {[%clk 0:00:09.2]} 41. Qxa4 {[%clk 0:02:17.9]} 1-0

[Event "*** Titled Tuesday Blitz"]
[Site "Chess.com"]
[Date "2019.12.03"]
[Round "8"]
[White "MasterKroket"]
[Black "Denis_Palkovich"]
[Result "1-0"]
[WhiteElo "2431"]
[BlackElo "2255"]
[TimeControl "180+2"]
[EndTime "14:52:19 PST"]
[Termination "MasterKroket won on time"]

1. d4 {[%clk 0:03:01.9]} 1... d5 {[%clk 0:02:46.5]} 2. c4 {[%clk 0:03:02.9]}
2... Bf5 {[%clk 0:02:46.2]} 3. Nc3 {[%clk 0:03:02.9]} 3... e6 {[%clk 0:02:46.4]}
4. Nf3 {[%clk 0:02:59]} 4... Bb4 {[%clk 0:02:46.1]} 5. Bf4 {[%clk 0:02:55.7]}
5... Nc6 {[%clk 0:02:38.6]} 6. e3 {[%clk 0:02:54.5]} 6... Nf6 {[%clk 0:02:28.5]}
7. a3 {[%clk 0:02:44.2]} 7... Bxc3+ {[%clk 0:02:23.5]} 8. bxc3 {[%clk
0:02:46.1]} 8... O-O {[%clk 0:02:24.3]} 9. c5 {[%clk 0:02:32.5]} 9... Ne4 {[%clk
0:02:14.4]} 10. Qb3 {[%clk 0:02:29.5]} 10... b6 {[%clk 0:01:41.2]} 11. Bb5
{[%clk 0:02:25.9]} 11... Na5 {[%clk 0:01:41.8]} 12. Qb4 {[%clk 0:02:26]} 12...
c6 {[%clk 0:01:27.4]} 13. Bd3 {[%clk 0:02:16.3]} 13... b5 {[%clk 0:00:34.9]} 14.
Bxe4 {[%clk 0:02:08]} 14... Bxe4 {[%clk 0:00:34.2]} 15. Nd2 {[%clk 0:02:07.9]}
15... Bd3 {[%clk 0:00:29.4]} 16. f3 {[%clk 0:02:04.3]} 16... Nc4 {[%clk
0:00:20.7]} 17. Nxc4 {[%clk 0:02:04.2]} 17... Bxc4 {[%clk 0:00:19.4]} 18. h4
{[%clk 0:01:57]} 18... f6 {[%clk 0:00:18.7]} 19. Bd6 {[%clk 0:01:55.8]} 19...
Re8 {[%clk 0:00:19.5]} 20. Kd2 {[%clk 0:01:47.6]} 20... e5 {[%clk 0:00:20.8]}
21. dxe5 {[%clk 0:01:41.4]} 21... fxe5 {[%clk 0:00:21]} 22. Qb1 {[%clk
0:01:42.1]} 22... d4 {[%clk 0:00:17]} 23. Qf5 {[%clk 0:01:36.9]} 23... dxe3+
{[%clk 0:00:13.1]} 24. Kxe3 {[%clk 0:01:36.9]} 24... e4 {[%clk 0:00:13.3]} 25.
fxe4 {[%clk 0:01:29.7]} 25... Be6 {[%clk 0:00:04.4]} 26. Qf4 {[%clk 0:01:27.1]}
26... Bd5 {[%clk 0:00:05.1]} 27. e5 {[%clk 0:01:27.8]} 27... Qa5 {[%clk
0:00:05.2]} 28. Qb4 {[%clk 0:01:26]} 28... Qd8 {[%clk 0:00:04]} 29. Rhf1 {[%clk
0:01:20.2]} 29... Qd7 {[%clk 0:00:04.7]} 30. Rf4 {[%clk 0:01:16.1]} 30... h6
{[%clk 0:00:03.7]} 31. g4 {[%clk 0:01:14.9]} 31... Re6 {[%clk 0:00:03.5]} 32.
Raf1 {[%clk 0:01:13.3]} 32... Rae8 {[%clk 0:00:02.2]} 33. Qd4 {[%clk 0:01:11.2]}
1-0

[Event "*** Titled Tuesday Blitz"]
[Site "Chess.com"]
[Date "2019.12.03"]
[Round "8"]
[White "PNEPaul"]
[Black "brendan174"]
[Result "1-0"]
[WhiteElo "1729"]
[BlackElo "2098"]
[TimeControl "180+2"]
[EndTime "14:52:26 PST"]
[Termination "PNEPaul won by resignation"]

1. e4 {[%clk 0:02:53.9]} 1... e5 {[%clk 0:03:00.8]} 2. Nf3 {[%clk 0:02:53.1]}
2... Nc6 {[%clk 0:03:01.8]} 3. Bc4 {[%clk 0:02:53.8]} 3... Bc5 {[%clk
0:03:02.3]} 4. b4 {[%clk 0:02:53.8]} 4... Bxb4 {[%clk 0:03:00.4]} 5. c3 {[%clk
0:02:54.9]} 5... Ba5 {[%clk 0:03:00]} 6. d4 {[%clk 0:02:55.7]} 6... exd4 {[%clk
0:02:56.2]} 7. O-O {[%clk 0:02:56.5]} 7... Nf6 {[%clk 0:02:49]} 8. e5 {[%clk
0:02:40.7]} 8... Ne4 {[%clk 0:02:37.2]} 9. Bd5 {[%clk 0:02:37.2]} 9... Nxc3
{[%clk 0:01:50.6]} 10. Nxc3 {[%clk 0:02:26.2]} 10... Bxc3 {[%clk 0:01:51.2]} 11.
Qb3 {[%clk 0:02:23.2]} 11... O-O {[%clk 0:01:42.4]} 12. Ba3 {[%clk 0:02:17.3]}
12... Bxa1 {[%clk 0:01:27.5]} 13. Bxf8 {[%clk 0:02:11.9]} 13... Qxf8 {[%clk
0:01:28.7]} 14. Rxa1 {[%clk 0:02:10]} 14... Ne7 {[%clk 0:01:03.1]} 15. Nxd4
{[%clk 0:01:54.4]} 15... Nxd5 {[%clk 0:01:03.7]} 16. Qxd5 {[%clk 0:01:55.2]}
16... c6 {[%clk 0:00:39.6]} 17. Qe4 {[%clk 0:01:49.2]} 17... b6 {[%clk
0:00:37.6]} 18. Re1 {[%clk 0:01:21.8]} 18... Ba6 {[%clk 0:00:27.2]} 19. Nf5
{[%clk 0:01:19.5]} 19... Re8 {[%clk 0:00:17.9]} 20. Qg4 {[%clk 0:01:18.4]} 20...
g6 {[%clk 0:00:13.5]} 21. Re3 {[%clk 0:01:10.3]} 21... Kh8 {[%clk 0:00:12.4]}
22. Nd6 {[%clk 0:01:05.1]} 22... Qe7 {[%clk 0:00:05.8]} 23. f4 {[%clk
0:01:00.9]} 23... c5 {[%clk 0:00:03.9]} 24. Rg3 {[%clk 0:00:45.2]} 24... Qe6
{[%clk 0:00:04.2]} 25. Qg5 {[%clk 0:00:42.3]} 25... Qe7 {[%clk 0:00:02.8]} 26.
Qh6 {[%clk 0:00:38.3]} 26... Bc8 {[%clk 0:00:03.2]} 27. Rh3 {[%clk 0:00:30.5]}
1-0

[Event "*** Titled Tuesday Blitz"]
[Site "Chess.com"]
[Date "2019.12.03"]
[Round "8"]
[White "Micki-taryan"]
[Black "cool4chess"]
[Result "0-1"]
[WhiteElo "2967"]
[BlackElo "2640"]
[TimeControl "180+2"]
[EndTime "14:52:28 PST"]
[Termination "cool4chess won by checkmate"]

1. e4 {[%clk 0:03:01.9]} 1... e5 {[%clk 0:03:00.7]} 2. Nf3 {[%clk 0:03:03.1]}
2... Nc6 {[%clk 0:03:02.2]} 3. Bc4 {[%clk 0:03:03.2]} 3... Nf6 {[%clk
0:03:02.5]} 4. c3 {[%clk 0:03:03]} 4... Bc5 {[%clk 0:03:01.5]} 5. d3 {[%clk
0:03:03.2]} 5... d6 {[%clk 0:03:02.1]} 6. Bg5 {[%clk 0:03:01]} 6... a6 {[%clk
0:03:01]} 7. a4 {[%clk 0:03:00.8]} 7... h6 {[%clk 0:02:59.3]} 8. Bh4 {[%clk
0:03:02]} 8... g5 {[%clk 0:02:43.5]} 9. Bg3 {[%clk 0:03:02.7]} 9... Be6 {[%clk
0:02:42.1]} 10. Nbd2 {[%clk 0:03:02.9]} 10... g4 {[%clk 0:02:40.1]} 11. Nh4
{[%clk 0:03:02.9]} 11... d5 {[%clk 0:02:37.2]} 12. Bb3 {[%clk 0:02:59.8]} 12...
Qd7 {[%clk 0:02:34.5]} 13. Qe2 {[%clk 0:02:55.2]} 13... O-O-O {[%clk 0:02:31.5]}
14. Bc2 {[%clk 0:02:56.6]} 14... d4 {[%clk 0:02:25.1]} 15. O-O {[%clk
0:02:55.1]} 15... Nh5 {[%clk 0:02:25.4]} 16. Rfb1 {[%clk 0:02:49.3]} 16... Nf4
{[%clk 0:02:20.3]} 17. Qf1 {[%clk 0:02:49]} 17... Be7 {[%clk 0:02:15.4]} 18. Nf5
{[%clk 0:02:49.3]} 18... Bxf5 {[%clk 0:02:11.9]} 19. exf5 {[%clk 0:02:51.2]}
19... Qxf5 {[%clk 0:02:13.5]} 20. Ne4 {[%clk 0:02:47.9]} 20... h5 {[%clk
0:02:14]} 21. Bb3 {[%clk 0:02:43.7]} 21... h4 {[%clk 0:02:07.5]} 22. Bxf4 {[%clk
0:02:44.6]} 22... exf4 {[%clk 0:02:09.4]} 23. f3 {[%clk 0:02:34.4]} 23... gxf3
{[%clk 0:02:07.6]} 24. Qxf3 {[%clk 0:01:50.4]} 24... dxc3 {[%clk 0:02:08.6]} 25.
bxc3 {[%clk 0:01:50.9]} 25... Ne5 {[%clk 0:02:09.6]} 26. Qh3 {[%clk 0:01:51.9]}
26... Qxh3 {[%clk 0:02:04.5]} 27. gxh3 {[%clk 0:01:53.8]} 27... Rxd3 {[%clk
0:02:05.7]} 28. Kh1 {[%clk 0:01:43.3]} 28... Rxh3 {[%clk 0:02:05.5]} 29. Rf1
{[%clk 0:01:44.2]} 29... Rg8 {[%clk 0:02:04.2]} 30. Rae1 {[%clk 0:01:23.5]}
30... Re3 {[%clk 0:01:55.8]} 31. Nf2 {[%clk 0:01:13.7]} 31... Rd8 {[%clk
0:01:50.3]} 32. Bc2 {[%clk 0:01:10.6]} 32... Kb8 {[%clk 0:01:51.4]} 33. Ne4
{[%clk 0:01:07.3]} 33... h3 {[%clk 0:01:47.4]} 34. Rb1 {[%clk 0:01:00.7]} 34...
Rg8 {[%clk 0:01:47.8]} 35. Rxf4 {[%clk 0:00:58.4]} 35... Re2 {[%clk 0:01:39.8]}
36. Rf2 {[%clk 0:00:59.2]} 36... Rg2 {[%clk 0:01:35.7]} 37. Rbf1 {[%clk
0:00:43.4]} 37... Nf3 {[%clk 0:01:27.9]} 38. Rxe2 {[%clk 0:00:40.5]} 38... Rxe2
{[%clk 0:01:29.8]} 39. Nf2 {[%clk 0:00:32.1]} 39... Rxc2 {[%clk 0:01:30.7]} 40.
a5 {[%clk 0:00:33]} 40... Bc5 {[%clk 0:01:18.8]} 41. c4 {[%clk 0:00:30.7]} 41...
Bxf2 {[%clk 0:01:11.3]} 42. c5 {[%clk 0:00:32.6]} 42... Bxc5 {[%clk 0:01:08.1]}
43. Rf2 {[%clk 0:00:34.2]} 43... Rc1+ {[%clk 0:01:08.5]} 44. Rf1 {[%clk
0:00:36.1]} 44... Rxf1# {[%clk 0:01:10]} 0-1